fUSD/lending_fUSD_20241002
["ID","MTS","AMOUNT","RATE_DAILY","PERIOD"]
[339691415,1727869855304,-500.0,0.00022191,2]
[339691417,1727869855314,-643.98,0.00022191,2]
[339691418,1727869855323,-501.36141898,0.00022191,2]
[339691420,1727869855332,-500.0,0.00022191,2]
[339691431,1727869855438,-500.0,0.00022191,2]
[339691433,1727869855448,-500.0,0.00022191,2]
[339691435,1727869855460,-1588.3,0.00022191,2]
[339691437,1727869855469,-500.0,0.00022191,2]
[339691438,1727869855479,-500.0,0.00022191,2]
[339691440,1727869855488,-524.95,0.00022191,2]
[339691442,1727869855497,-500.0,0.00022191,2]
[339691444,1727869855507,-593.26,0.00022191,2]
[339691446,1727869855516,-779.27,0.00022191,2]
[339691448,1727869855526,-500.0,0.00022191,2]
[339691450,1727869855535,-500.0,0.00022191,2]
[339691451,1727869855545,-959.91,0.00022191,2]
[339691453,1727869855554,-500.0,0.00022191,2]
[339691455,1727869855564,-500.0,0.00022191,2]
[339691457,1727869855574,-500.0,0.00022191,2]
[339691459,1727869855583,-500.0,0.00022191,2]
[339691461,1727869855593,-500.0,0.00022191,2]
[339691463,1727869855605,-500.0,0.00022191,2]
[339691465,1727869855615,-767.3,0.00022191,2]
[339691466,1727869855625,-500.0,0.00022191,2]
[339691468,1727869855635,-500.0,0.00022191,2]
[339691470,1727869855644,-284.63,0.00022191,2]
[339691472,1727869855654,-500.0,0.00022191,2]
[339691474,1727869855663,-500.0,0.00022191,2]
[339691476,1727869855673,-500.0,0.00022191,2]
[339691477,1727869855684,-578.47,0.00022191,2]
[339691479,1727869855693,-500.0,0.00022191,2]
[339691481,1727869855703,-1184.81,0.00022191,2]
[339691483,1727869855713,-1390.14,0.00022191,2]
[339691485,1727869855723,-1545.38,0.00022191,2]
[339691487,1727869855732,-500.0,0.00022191,2]
[339691489,1727869855742,-1552.98,0.00022191,2]
[339691491,1727869855752,-500.0,0.00022191,2]
[339691492,1727869855762,-805.91,0.00022191,2]
[339691494,1727869855772,-500.0,0.00022191,2]
[339691496,1727869855781,-741.36,0.00022191,2]
[339691498,1727869855792,-755.85,0.00022191,2]
[339691500,1727869855801,-500.0,0.00022191,2]
[339691502,1727869855810,-500.0,0.00022191,2]
[339691503,1727869855820,-500.0,0.00022191,2]
[339691505,1727869855829,-500.0,0.00022191,2]
[339691507,1727869855838,-500.0,0.00022191,2]
[339691509,1727869855848,-500.0,0.00022191,2]
[339691510,1727869855857,-610.0,0.00022191,2]
[339691512,1727869855866,-500.0,0.00022191,2]
[339691514,1727869855876,-778.9,0.00022191,2]
[339691516,1727869855886,-1369.29,0.00022191,2]
[339691518,1727869855896,-801.0,0.00022191,2]
[339691520,1727869855906,-548.03,0.00022191,2]
[339691522,1727869855918,-500.0,0.00022191,2]
[339691524,1727869855927,-1420.73,0.00022191,2]
[339691526,1727869855936,-500.0,0.00022191,2]
[339691527,1727869855945,-771.62,0.00022191,2]
[339691529,1727869855956,-767.84,0.00022191,2]
[339691531,1727869855968,-500.0,0.00022191,2]
[339691533,1727869855977,-500.0,0.00022191,2]
[339691535,1727869855986,-500.0,0.00022191,2]
[339691537,1727869855999,-500.0,0.00022191,2]
[339691539,1727869856008,-500.0,0.00022191,2]
[339691540,1727869856018,-889.03,0.00022191,2]
[339691542,1727869856027,-500.0,0.00022191,2]
[339691544,1727869856036,-500.0,0.00022191,2]
[339691546,1727869856046,-500.0,0.00022191,2]
[339691548,1727869856054,-503.57255295,0.00022191,2]
[339691550,1727869856064,-503.35064083,0.00022191,2]
[339691551,1727869856073,-500.0,0.00022191,2]
[339691553,1727869856083,-503.50428347,0.00022191,2]
[339691555,1727869856092,-641.09,0.00022191,2]
[339691557,1727869856101,-500.0,0.00022191,2]
[339691559,1727869856111,-500.0,0.00022191,2]
[339691561,1727869856121,-500.0,0.00022191,2]
[339691563,1727869856130,-551.81,0.00022191,2]
[339691565,1727869856139,-500.0,0.00022191,2]
[339691567,1727869856148,-500.0,0.00022191,2]
[339691569,1727869856158,-678.78,0.00022191,2]
[339691571,1727869856168,-500.0,0.00022191,2]
[339691573,1727869856178,-500.0,0.00022191,2]
[339691575,1727869856188,-1109.34,0.00022191,2]
[339691577,1727869856197,-500.0,0.00022191,2]
[339691578,1727869856206,-500.0,0.00022191,2]
[339691580,1727869856217,-500.0,0.00022191,2]
[339691582,1727869856236,-500.0,0.00022191,2]
[339691584,1727869856245,-500.0,0.00022191,2]
[339691586,1727869856255,-983.59,0.00022191,2]
[339691588,1727869856266,-1062.54,0.00022191,2]
[339691590,1727869856275,-622.33455099,0.00022191,2]
[339691592,1727869856284,-1270.09,0.00022191,2]
[339691594,1727869856294,-1402.36,0.00022191,2]
[339691596,1727869856305,-820.49,0.00022191,2]
[339691598,1727869856316,-801.41,0.00022191,2]
[339691599,1727869856326,-713.08,0.00022191,2]
[339691601,1727869856335,-500.0,0.00022191,2]
[339691603,1727869856345,-678.56,0.00022191,2]
[339691605,1727869856354,-500.0,0.00022191,2]
[339691607,1727869856363,-500.0,0.00022191,2]
[339691608,1727869856373,-500.0,0.00022191,2]
[339691610,1727869856383,-500.0,0.00022191,2]
[339691612,1727869856393,-1293.47,0.00022191,2]
[339691614,1727869856402,-500.0,0.00022191,2]
[339691616,1727869856412,-902.63,0.00022191,5]
[339691618,1727869856422,-1343.58,0.00022191,2]
[339691620,1727869856432,-500.0,0.00022191,2]
[339691622,1727869856443,-500.0,0.00022191,2]
[339691624,1727869856452,-616.78,0.00022191,2]
[339691625,1727869856464,-814.56,0.00022191,2]
[339691628,1727869856474,-500.0,0.00022191,2]
[339691630,1727869856483,-500.0,0.00022191,2]
[339691631,1727869856493,-2604.16,0.00022191,2]
[339691633,1727869856502,-500.0,0.00022191,2]
[339691635,1727869856511,-1424.77,0.00022191,2]
[339691637,1727869856521,-500.0,0.00022191,2]
[339691639,1727869856531,-500.0,0.00022191,2]
[339691641,1727869856540,-942.76,0.00022191,2]
[339691643,1727869856549,-500.0,0.00022191,2]
[339691645,1727869856559,-770.38,0.00022191,2]
[339691647,1727869856569,-500.0,0.00022191,2]
[339691649,1727869856578,-500.0,0.00022191,2]
[339691651,1727869856588,-500.0,0.00022191,2]
[339691653,1727869856598,-535.73,0.00022191,2]
[339691655,1727869856608,-500.0,0.00022191,2]
[339691657,1727869856617,-500.0,0.00022191,2]
[339691659,1727869856627,-500.0,0.00022191,2]
[339691661,1727869856637,-500.0,0.00022191,2]
[339691662,1727869856646,-1056.78,0.00022191,2]
[339691664,1727869856655,-975.41,0.00022191,2]
[339691666,1727869856665,-500.0,0.00022191,2]
[339691668,1727869856675,-1210.32,0.00022191,2]
[339691670,1727869856685,-1078.55,0.00022191,2]
[339691672,1727869856694,-682.08,0.00022191,2]
[339691674,1727869856703,-500.0,0.00022191,2]
[339691676,1727869856716,-500.0,0.00022191,2]
[339691678,1727869856731,-500.0,0.00022191,2]
[339691680,1727869856741,-500.0,0.00022191,2]
[339691682,1727869856750,-1189.26,0.00022191,2]
[339691684,1727869856760,-2785.63,0.00022191,2]
[339691686,1727869856769,-858.38,0.00022191,2]
[339691688,1727869856778,-1948.92,0.00022191,2]
[339691690,1727869856788,-500.0,0.00022191,2]
[339691692,1727869856798,-941.68,0.00022191,2]
[339691693,1727869856808,-500.0,0.00022191,2]
[339691695,1727869856817,-670.24,0.00022191,2]
[339691697,1727869856827,-500.0,0.00022191,2]
[339691699,1727869856836,-594.79,0.00022191,2]
[339691701,1727869856846,-500.0,0.00022191,2]
[339691703,1727869856855,-500.0,0.00022191,2]
[339691705,1727869856865,-5341.96,0.00022191,2]
[339691707,1727869856875,-643.1,0.00022191,2]
[339691709,1727869856885,-500.0,0.00022191,2]
[339691711,1727869856894,-500.0,0.00022191,2]
[339691713,1727869856903,-2099.58,0.00022191,2]
[339691715,1727869856915,-500.0,0.00022191,2]
[339691717,1727869856924,-500.0,0.00022191,2]
[339691719,1727869856934,-500.0,0.00022191,2]
[339691721,1727869856943,-500.0,0.00022191,2]
[339691722,1727869856953,-1567.72,0.00022191,2]
[339691724,1727869856965,-500.0,0.00022191,2]
[339691726,1727869856975,-500.0,0.00022191,2]
[339691728,1727869856985,-779.17,0.00022191,2]
[339691730,1727869856995,-500.0,0.00022191,2]
[339691732,1727869857005,-1062.28,0.00022191,2]
[339691734,1727869857014,-500.0,0.00022191,2]
[339691735,1727869857024,-1060.35,0.00022191,2]
[339691736,1727869857033,-1203.86,0.00022191,2]
[339691737,1727869857042,-907.55,0.00022191,2]
[339691738,1727869857051,-500.0,0.00022191,2]
[339691739,1727869857061,-941.43,0.00022191,2]
[339691740,1727869857070,-500.0,0.00022191,2]
[339691741,1727869857080,-500.0,0.00022191,2]
[339691742,1727869857089,-500.0,0.00022191,2]
[339691743,1727869857099,-500.0,0.00022191,2]
[339691744,1727869857109,-500.0,0.00022191,2]
[339691745,1727869857118,-567.36,0.00022191,2]
[339691746,1727869857128,-1377.52,0.00022191,2]
[339691747,1727869857137,-1924.96,0.00022191,2]
[339691748,1727869857146,-500.0,0.00022191,2]
[339691749,1727869857156,-2570.66,0.00022191,2]
[339691750,1727869857165,-500.0,0.00022191,2]
[339691752,1727869857175,-504.18,0.00022191,2]
[339691754,1727869857184,-500.0,0.00022191,2]
[339691756,1727869857194,-500.0,0.00022191,2]
[339691758,1727869857203,-500.0,0.00022191,2]
[339691760,1727869857213,-1694.56,0.00022191,2]
[339691762,1727869857223,-535.92,0.00022191,2]
[339691764,1727869857232,-500.0,0.00022191,2]
[339691766,1727869857242,-1037.69,0.00022191,2]
[339691768,1727869857251,-500.0,0.00022191,2]
[339691770,1727869857260,-500.0,0.00022191,2]
[339691771,1727869857269,-1154.29,0.00022191,2]
[339691773,1727869857279,-500.0,0.00022191,2]
[339691775,1727869857289,-500.0,0.00022191,2]
[339691777,1727869857299,-500.0,0.00022191,2]
[339691779,1727869857308,-500.0,0.00022191,2]
[339691781,1727869857318,-1331.73,0.00022191,2]
[339691783,1727869857327,-5235.58,0.00022191,2]
[339691785,1727869857337,-500.0,0.00022191,2]
[339691787,1727869857346,-910.92,0.00022191,2]
[339691789,1727869857357,-500.0,0.00022191,2]
[339691791,1727869857367,-500.0,0.00022191,2]
[339691793,1727869857379,-3299.68,0.00022191,2]
[339691795,1727869857388,-500.0,0.00022191,2]
[339691797,1727869857398,-500.0,0.00022191,2]
[339691799,1727869857408,-2072.97,0.00022191,2]
[339691801,1727869857417,-500.0,0.00022191,2]
[339691803,1727869857427,-1375.53,0.00022191,2]
[339691805,1727869857436,-1395.77,0.00022191,2]
[339691807,1727869857446,-500.0,0.00022191,2]
[339691809,1727869857455,-500.0,0.00022191,2]
[339691811,1727869857466,-934.49,0.00022191,2]
[339691813,1727869857476,-594.23,0.00022191,2]
[339691815,1727869857486,-500.0,0.00022191,2]
[339691817,1727869857496,-500.0,0.00022191,2]
[339691819,1727869857506,-500.0,0.00022191,2]
[339691821,1727869857516,-717.11,0.00022191,2]
[339691823,1727869857525,-500.0,0.00022191,2]
[339691825,1727869857535,-500.0,0.00022191,2]
[339691827,1727869857544,-6239.89,0.00022191,2]
[339691829,1727869857554,-500.0,0.00022191,2]
[339691831,1727869857564,-657.08,0.00022191,2]
[339691833,1727869857573,-500.0,0.00022191,2]
[339691835,1727869857583,-500.0,0.00022191,2]
[339691837,1727869857593,-2362.21,0.00022191,2]
[339691839,1727869857602,-500.0,0.00022191,2]
[339691840,1727869857612,-1282.02,0.00022191,2]
[339691842,1727869857622,-500.0,0.00022191,2]
[339691844,1727869857632,-621.95,0.00022191,2]
[339691846,1727869857644,-594.39,0.00022191,2]
[339691848,1727869857654,-500.0,0.00022191,2]
[339691850,1727869857666,-500.0,0.00022191,2]
[339691852,1727869857675,-500.0,0.00022191,2]
[339691854,1727869857685,-500.0,0.00022191,2]
[339691856,1727869857695,-654.11,0.00022191,2]
[339691858,1727869857705,-2484.06,0.00022191,2]
[339691860,1727869857715,-553.95,0.00022191,2]
[339691862,1727869857725,-500.0,0.00022191,2]
[339691864,1727869857734,-500.0,0.00022191,2]
[339691866,1727869857743,-500.0,0.00022191,2]
[339691868,1727869857753,-1100.5,0.00022191,2]
[339691870,1727869857763,-501.41002086,0.00022191,2]
[339691872,1727869857773,-2044.12,0.00022191,2]
[339691874,1727869857783,-1595.01,0.00022191,2]
[339691876,1727869857793,-500.0,0.00022191,2]
[339691878,1727869857803,-2887.75,0.00022191,2]
[339691880,1727869857812,-500.0,0.00022191,2]
[339691881,1727869857822,-500.0,0.00022191,2]
[339691884,1727869857831,-2169.69,0.00022191,2]
[339691885,1727869857841,-501.04187591,0.00022191,2]
[339691887,1727869857851,-1549.67,0.00022191,2]
[339691889,1727869857861,-500.0,0.00022191,2]
[339691891,1727869857870,-2305.86,0.00022191,2]
[339691893,1727869857880,-500.0,0.00022191,2]
[339691895,1727869857890,-500.0,0.00022191,2]
[339691897,1727869857900,-4429.03,0.00022191,2]
[339691899,1727869857911,-500.0,0.00022191,2]
[339691901,1727869857923,-500.0,0.00022191,2]
[339691903,1727869857933,-500.0,0.00022191,2]
[339691905,1727869857943,-500.0,0.00022191,2]
[339691907,1727869857952,-500.0,0.00022191,2]
[339691909,1727869857963,-2507.39,0.00022191,2]
[339691911,1727869857972,-1324.08,0.00022191,2]
[339691913,1727869857982,-948.06,0.00022191,2]
[339691915,1727869857992,-1133.03,0.00022191,2]
[339691917,1727869858002,-500.0,0.00022191,2]
[339691919,1727869858011,-358.13890422,0.00022191,2]
[339691921,1727869858021,-500.0,0.00022191,2]
[339691923,1727869858032,-502.97264463,0.00022191,2]
[339691925,1727869858042,-500.0,0.00022191,2]
[339691927,1727869858051,-500.0,0.00022191,2]
[339691929,1727869858061,-2644.67,0.00022191,2]
[339691931,1727869858070,-501.0777133,0.00022191,2]
[339691933,1727869858080,-1029.87,0.00022191,2]
[339691935,1727869858090,-693.45,0.00022191,2]
[339691936,1727869858100,-911.95,0.00022191,2]
[339691939,1727869858110,-500.0,0.00022191,2]
[339691940,1727869858119,-500.0,0.00022191,2]
[339691942,1727869858129,-500.0,0.00022191,2]
[339691944,1727869858139,-680.01,0.00022191,2]
[339691946,1727869858149,-2554.46,0.00022191,2]
[339691948,1727869858158,-500.0,0.00022191,2]
[339691950,1727869858168,-3104.41,0.00022191,2]
[339691952,1727869858177,-1531.89,0.00022191,2]
[339691954,1727869858187,-500.0,0.00022191,2]
[339691956,1727869858197,-854.9,0.00022191,2]
[339691958,1727869858207,-500.0,0.00022191,2]
[339691960,1727869858218,-501.03664425,0.00022191,2]
[339691962,1727869858228,-500.0,0.00022191,2]
[339691964,1727869858238,-500.0,0.00022191,2]
[339691965,1727869858247,-914.75,0.00022191,2]
[339691967,1727869858257,-325.07681338,0.00022191,2]
[339691969,1727869858267,-500.0,0.00022191,2]
[339691971,1727869858276,-1482.48,0.00022191,2]
[339691973,1727869858286,-2958.79,0.00022191,2]
[339691974,1727869858295,-500.0,0.00022191,2]
[339691976,1727869858305,-500.0,0.00022191,2]
[339691978,1727869858316,-769.4,0.00022191,2]
[339691980,1727869858326,-737.81,0.00022191,2]
[339691982,1727869858335,-920.12,0.00022191,2]
[339691984,1727869858345,-4214.73,0.00022191,2]
[339691985,1727869858354,-500.0,0.00022191,2]
[339691987,1727869858364,-3969.74,0.00022191,2]
[339691989,1727869858374,-354.45644411,0.00022191,2]
[339691991,1727869858384,-500.0,0.00022191,2]
[339691993,1727869858394,-642.53,0.00022191,2]
[339691995,1727869858404,-4693.28,0.00022191,2]
[339691997,1727869858413,-1981.48,0.00022191,2]
[339691999,1727869858424,-500.0,0.00022191,2]
[339692001,1727869858434,-769.22,0.00022191,2]
[339692003,1727869858443,-500.0,0.00022191,2]
[339692005,1727869858453,-1333.72,0.00022191,2]
[339692007,1727869858464,-500.0,0.00022191,2]
[339692009,1727869858473,-971.65,0.00022191,2]
[339692011,1727869858483,-500.0,0.00022191,2]
[339692013,1727869858493,-500.0,0.00022191,2]
[339692014,1727869858503,-500.0,0.00022191,2]
[339692016,1727869858513,-500.0,0.00022191,2]
[339692018,1727869858523,-4781.7,0.00022191,2]
[339692020,1727869858533,-500.0,0.00022191,2]
[339692022,1727869858542,-1840.41,0.00022191,2]
[339692024,1727869858552,-3256.68,0.00022191,2]
[339692026,1727869858561,-500.0,0.00022191,2]
[339692028,1727869858571,-500.0,0.00022191,2]
[339692030,1727869858581,-949.52,0.00022191,2]
[339692032,1727869858591,-500.0,0.00022191,2]
[339692034,1727869858601,-1052.75,0.00022191,2]
[339692037,1727869858612,-500.0,0.00022191,2]
[339692038,1727869858623,-1139.3,0.00022191,2]
[339692040,1727869858633,-1499.88,0.00022191,2]
[339692042,1727869858643,-536.41800142,0.00022191,2]
[339692044,1727869858652,-3896.36,0.00022191,2]
[339692046,1727869858661,-500.0,0.00022191,2]
[339692048,1727869858671,-837.15,0.00022191,2]
[339692050,1727869858680,-500.0,0.00022191,2]
[339692052,1727869858689,-500.0,0.00022191,2]
[339692054,1727869858699,-500.0,0.00022191,2]
[339692056,1727869858708,-500.0,0.00022191,2]
[339692058,1727869858718,-706.42,0.00022191,2]
[339692060,1727869858728,-1586.71,0.00022191,2]
[339692062,1727869858737,-500.0,0.00022191,2]
[339692063,1727869858747,-2633.91,0.00022191,2]
[339692065,1727869858757,-500.0,0.00022191,2]
[339692067,1727869858767,-1238.3,0.00022191,2]
[339692069,1727869858776,-625.64,0.00022191,2]
[339692071,1727869858785,-500.0,0.00022191,2]
[339692073,1727869858795,-1209.21,0.00022191,2]
[339692075,1727869858805,-1377.7,0.00022191,2]
[339692077,1727869858814,-1229.98,0.00022191,2]
[339692079,1727869858824,-1490.73,0.00022191,2]
[339692081,1727869858833,-173.35234885,0.00022191,2]
[339692083,1727869858842,-500.0,0.00022191,2]
[339692085,1727869858851,-2367.9,0.00022191,2]
[339692087,1727869858862,-821.89,0.00022191,2]
[339692089,1727869858871,-500.0,0.00022191,2]
[339692090,1727869858881,-1174.03,0.00022191,2]
[339692092,1727869858890,-500.0,0.00022191,2]
[339692094,1727869858900,-500.0,0.00022191,2]
[339692096,1727869858911,-500.0,0.00022191,2]
[339692098,1727869858923,-847.46,0.00022191,2]
[339692100,1727869858933,-500.0,0.00022191,2]
[339692102,1727869858943,-500.0,0.00022191,2]
[339692104,1727869858953,-500.0,0.00022191,2]
[339692106,1727869858963,-500.0,0.00022191,2]
[339692108,1727869858972,-536.04,0.00022191,2]
[339692110,1727869858981,-545.49,0.00022191,2]
[339692112,1727869858991,-500.0,0.00022191,2]
[339692114,1727869859001,-718.29,0.00022191,2]
[339692116,1727869859010,-1000.0,0.00022191,2]
[339692118,1727869859019,-669.98,0.00022191,2]
[339692120,1727869859029,-500.0,0.00022191,2]
[339692122,1727869859039,-500.0,0.00022191,2]
[339692124,1727869859048,-596.18,0.00022191,2]
[339692126,1727869859057,-500.0,0.00022191,2]
[339692127,1727869859067,-500.0,0.00022191,2]
[339692129,1727869859076,-731.9,0.00022191,2]
[339692131,1727869859087,-1746.5,0.00022191,2]
[339692133,1727869859096,-500.0,0.00022191,2]
[339692135,1727869859106,-1675.75,0.00022191,2]
[339692137,1727869859115,-2492.76,0.00022191,2]
[339692139,1727869859125,-1021.85,0.00022191,2]
[339692141,1727869859134,-2147.45,0.00022191,2]
[339692143,1727869859143,-666.4,0.00022191,2]
[339692145,1727869859153,-1805.45,0.00022191,2]
[339692147,1727869859162,-500.0,0.00022191,2]
[339692149,1727869859171,-500.0,0.00022191,2]
[339692151,1727869859181,-767.65,0.00022191,2]
[339692153,1727869859190,-1399.04,0.00022191,2]
[339692155,1727869859201,-500.0,0.00022191,2]
[339692157,1727869859210,-500.0,0.00022191,2]
[339692159,1727869859220,-2569.52,0.00022191,2]
[339692161,1727869859230,-3554.36,0.00022191,2]
[339692163,1727869859239,-500.0,0.00022191,2]
[339692165,1727869859248,-1114.6,0.00022191,2]
[339692167,1727869859258,-500.0,0.00022191,2]
[339692169,1727869859267,-2281.6,0.00022191,2]
[339692171,1727869859277,-500.0,0.00022191,2]
[339692173,1727869859286,-2024.94,0.00022191,2]
[339692175,1727869859296,-1898.19,0.00022191,2]
[339692177,1727869859306,-2537.56,0.00022191,2]
[339692179,1727869859315,-500.0,0.00022191,2]
[339692181,1727869859324,-500.0,0.00022191,2]
[339692183,1727869859334,-500.0,0.00022191,2]
[339692185,1727869859343,-628.45,0.00022191,2]
[339692187,1727869859354,-531.82,0.00022191,2]
[339692189,1727869859363,-1115.9,0.00022191,2]
[339692191,1727869859373,-769.35,0.00022191,2]
[339692193,1727869859382,-637.83,0.00022191,2]
[339692195,1727869859391,-1589.06,0.00022191,2]
[339692197,1727869859401,-500.0,0.00022191,2]
[339692199,1727869859410,-690.75,0.00022191,2]
[339692200,1727869859420,-1606.12,0.00022191,2]
[339692202,1727869859429,-2547.67,0.00022191,2]
[339692204,1727869859438,-500.0,0.00022191,2]
[339692206,1727869859448,-500.0,0.00022191,2]
[339692208,1727869859457,-500.0,0.00022191,2]
[339692210,1727869859472,-833.08,0.00022191,2]
[339692212,1727869859482,-1174.4,0.00022191,2]
[339692214,1727869859491,-500.0,0.00022191,2]
[339692215,1727869859501,-2149.44,0.00022191,2]
[339692217,1727869859511,-628.01,0.00022191,2]
[339692219,1727869859520,-500.0,0.00022191,2]
[339692221,1727869859529,-846.9,0.00022191,2]
[339692223,1727869859539,-863.26,0.00022191,2]
[339692225,1727869859549,-651.99,0.00022191,2]
[339692227,1727869859559,-500.0,0.00022191,2]
[339692229,1727869859568,-500.0,0.00022191,2]
[339692231,1727869859578,-2757.68,0.00022191,2]
[339692233,1727869859587,-500.0,0.00022191,2]
[339692235,1727869859597,-603.14,0.00022191,2]
[339692248,1727869859720,-500.0,0.00022191,2]
[339692250,1727869859738,-1696.1,0.00022191,2]
[339692252,1727869859749,-985.26,0.00022191,2]
[339692254,1727869859758,-500.0,0.00022191,2]
[339692256,1727869859768,-300.0,0.00022191,2]
[339692258,1727869859778,-500.0,0.00022191,2]
[339692260,1727869859788,-653.8,0.00022191,2]
[339692262,1727869859798,-1267.6,0.00022191,2]
[339692264,1727869859807,-3039.66,0.00022191,2]
[339692266,1727869859817,-500.0,0.00022191,2]
[339692268,1727869859826,-500.0,0.00022191,2]
[339692270,1727869859836,-500.0,0.00022191,2]
[339692271,1727869859846,-500.0,0.00022191,2]
[339692273,1727869859856,-1289.3,0.00022191,2]
[339692276,1727869859866,-2047.61,0.00022191,2]
[339692277,1727869859876,-1504.84,0.00022191,2]
[339692279,1727869859886,-981.63,0.00022191,2]
[339692281,1727869859895,-500.0,0.00022191,2]
[339692283,1727869859905,-500.0,0.00022191,2]
[339692285,1727869859917,-854.69,0.00022191,2]
[339692287,1727869859927,-500.0,0.00022191,2]
[339692289,1727869859938,-500.0,0.00022191,2]
[339692291,1727869859947,-500.0,0.00022191,2]
[339692293,1727869859957,-1547.4,0.00022191,2]
[339692295,1727869859968,-500.0,0.00022191,2]
[339692297,1727869859978,-500.0,0.00022191,2]
[339692299,1727869859989,-500.0,0.00022191,2]
[339692301,1727869859999,-1749.84,0.00022191,2]
[339692303,1727869860009,-1355.56,0.00022191,2]
[339692305,1727869860020,-281.82160839,0.00022191,2]
[339692307,1727869860030,-1502.59,0.00022191,2]
[339692309,1727869860040,-1145.46,0.00022191,2]
[339692311,1727869860049,-2100.16,0.00022191,2]
[339692312,1727869860059,-1280.36,0.00022191,2]
[339692313,1727869860069,-500.0,0.00022191,2]
[339692314,1727869860079,-3721.85,0.00022191,2]
[339692315,1727869860089,-2297.01,0.00022191,2]
[339692316,1727869860099,-525.24,0.00022191,2]
[339692317,1727869860108,-500.0,0.00022191,2]
[339692318,1727869860119,-500.0,0.00022191,2]
[339692319,1727869860129,-500.0,0.00022191,2]
[339692320,1727869860139,-1550.17,0.00022191,2]
[339692321,1727869860149,-500.0,0.00022191,2]
[339692322,1727869860159,-1243.26,0.00022191,2]
[339692323,1727869860169,-500.0,0.00022191,2]
[339692324,1727869860179,-500.0,0.00022191,2]
[339692326,1727869860189,-500.0,0.00022191,2]
[339692328,1727869860199,-500.0,0.00022191,2]
[339692330,1727869860209,-500.0,0.00022191,2]
[339692332,1727869860221,-500.0,0.00022191,2]
[339692334,1727869860231,-500.0,0.00022191,2]
[339692336,1727869860240,-1732.3,0.00022191,2]
[339692338,1727869860250,-500.0,0.00022191,2]
[339692340,1727869860259,-924.39,0.00022191,2]
[339692342,1727869860269,-500.0,0.00022191,2]
[339692344,1727869860279,-500.0,0.00022191,2]
[339692346,1727869860288,-2892.79,0.00022191,2]
[339692348,1727869860298,-500.0,0.00022191,2]
[339692350,1727869860307,-1860.9,0.00022191,2]
[339692352,1727869860317,-1136.61,0.00022191,2]
[339692354,1727869860326,-565.48508497,0.00022191,2]
[339692356,1727869860336,-500.0,0.00022191,2]
[339692358,1727869860345,-1271.74,0.00022191,2]
[339692360,1727869860355,-2319.1,0.00022191,2]
[339692362,1727869860365,-1091.67,0.00022191,2]
[339692364,1727869860376,-1380.93,0.00022191,2]
[339692366,1727869860386,-516.76,0.00022191,2]
[339692368,1727869860396,-500.0,0.00022191,2]
[339692370,1727869860405,-500.0,0.00022191,2]
[339692372,1727869860415,-500.0,0.00022191,2]